Department Family,Entity,Date Paid,Expense Type,Expenses Area,Supplier Name,Transaction Reference,Total,VAT Registration Number
Department of Health,Imperial College Healthcare NHS Trust,29/12/2014,Chx Pharmacy Stock,Stock,A A H Pharmaceuticals Limited,3049430,"33,948.29",Optional requirement only
Department of Health,Imperial College Healthcare NHS Trust,02/12/2014,Acton Housing Association,Housing deductions,A2dominion Housing Group Ltd,3045454,"165,870.99",Optional requirement only
Department of Health,Imperial College Healthcare NHS Trust,12/12/2014,Clinical Managed Service Contr,Investigative Sciences & C S,Abbott Laboratories Ltd,3052313,"111,321.42",Optional requirement only
Department of Health,Imperial College Healthcare NHS Trust,12/12/2014,Clinical Managed Service Contr,Investigative Sciences & C S,Abbott Laboratories Ltd,3052315,"407,193.40",Optional requirement only
Department of Health,Imperial College Healthcare NHS Trust,12/12/2014,Consultancy Fees,Finance Directorate,Adviseinc Ltd,3047048,"30,240.00",Optional requirement only
Department of Health,Imperial College Healthcare NHS Trust,23/12/2014,Buildings-Add(Prof Fee)-Purch,Capital Summary,Aecom House,3056527,"66,000.00",Optional requirement only
Department of Health,Imperial College Healthcare NHS Trust,18/12/2014,Computer Software/License,Human Resources,Allocate Software Plc,3053758,"62,985.60",Optional requirement only
Department of Health,Imperial College Healthcare NHS Trust,09/12/2014,Equip Maint Contracts,Investigative Sciences & C S,Asteral Mms Limited,3050646,"576,677.70",Optional requirement only
Department of Health,Imperial College Healthcare NHS Trust,02/12/2014,Buildings-Add(Prof Fee)-Purch,Capital Summary,Baker Tilly Business Services Limited,3045368,"89,660.39",Optional requirement only
Department of Health,Imperial College Healthcare NHS Trust,12/12/2014,Jac - Stock,Stock,Bayer Plc,3045477,"66,074.40",Optional requirement only
Department of Health,Imperial College Healthcare NHS Trust,23/12/2014,Jac - Stock,Stock,Bayer Plc,3048678,"69,745.20",Optional requirement only
Department of Health,Imperial College Healthcare NHS Trust,09/12/2014,Lab Equip Maint / Repairs,Investigative Sciences & C S,Beckman Coulter Uk Ltd,3050599,"48,604.49",Optional requirement only
Department of Health,Imperial College Healthcare NHS Trust,09/12/2014,Ext Contr Laundry,Directorate Of Strategy,Berendsen Uk Limited,3049170,"41,902.57",Optional requirement only
Department of Health,Imperial College Healthcare NHS Trust,23/12/2014,P & M-Additions-Purchased,Capital Summary,Biotage Sweden Ab,3057156,"38,250.00",Optional requirement only
Department of Health,Imperial College Healthcare NHS Trust,04/12/2014,It Eqpt-Additions,Capital Summary,Block Solutions Ltd,3047357,"74,664.36",Optional requirement only
Department of Health,Imperial College Healthcare NHS Trust,16/12/2014,Hh Pharmacy Stock,Stock,Bpl (Bio-Products Laboratory),3043279,"29,994.21",Optional requirement only
Department of Health,Imperial College Healthcare NHS Trust,02/12/2014,Agency Admin & Clerical,Division Of Women And Children,Brook Street Uk Ltd,3045141,"30,177.53",Optional requirement only
Department of Health,Imperial College Healthcare NHS Trust,09/12/2014,Agency Admin & Clerical,Division Of Women And Children,Brook Street Uk Ltd,3050180,"32,905.63",Optional requirement only
Department of Health,Imperial College Healthcare NHS Trust,16/12/2014,Agency Admin & Clerical,Division Of Women And Children,Brook Street Uk Ltd,3053586,"35,112.19",Optional requirement only
Department of Health,Imperial College Healthcare NHS Trust,29/12/2014,Agency Admin & Clerical,Division Of Women And Children,Brook Street Uk Ltd,3058205,"33,511.21",Optional requirement only
Department of Health,Imperial College Healthcare NHS Trust,02/12/2014,Agency Admin & Clerical,Investigative Sciences & C S,Brook Street Uk Ltd,3045141,"33,562.54",Optional requirement only
Department of Health,Imperial College Healthcare NHS Trust,09/12/2014,Agency Admin & Clerical,Investigative Sciences & C S,Brook Street Uk Ltd,3050180,"33,476.95",Optional requirement only
Department of Health,Imperial College Healthcare NHS Trust,16/12/2014,Agency Admin & Clerical,Investigative Sciences & C S,Brook Street Uk Ltd,3053586,"35,753.05",Optional requirement only
Department of Health,Imperial College Healthcare NHS Trust,29/12/2014,Agency Admin & Clerical,Investigative Sciences & C S,Brook Street Uk Ltd,3058205,"34,943.71",Optional requirement only
Department of Health,Imperial College Healthcare NHS Trust,12/12/2014,Hh Pharmacy Stock,Stock,Bupa Home Healthcare,3043290,"42,360.00",Optional requirement only
Department of Health,Imperial College Healthcare NHS Trust,12/12/2014,Hh Pharmacy Stock,Stock,Bupa Home Healthcare,3043292,"29,963.88",Optional requirement only
Department of Health,Imperial College Healthcare NHS Trust,29/12/2014,Hh Pharmacy Stock,Stock,Bupa Home Healthcare,3058667,"53,578.00",Optional requirement only
Department of Health,Imperial College Healthcare NHS Trust,29/12/2014,Hh Pharmacy Stock,Stock,Bupa Home Healthcare,3058669,"41,795.53",Optional requirement only
Department of Health,Imperial College Healthcare NHS Trust,04/12/2014,Drugs Nhs,Division Of Medicine,Central & North West London,3047257,"29,538.14",Optional requirement only
Department of Health,Imperial College Healthcare NHS Trust,09/12/2014,Services Received - Nhsts,Investigative Sciences & C S,Central London Community Healthcare Nhs Trust,49589,"34,335.00",Optional requirement only
Department of Health,Imperial College Healthcare NHS Trust,29/12/2014,Patients Appl: Purchase,"Surg, Canc & Cardiovasc Div",Chas A Blatchford And Sons Ltd,3058208,"35,969.40",Optional requirement only
Department of Health,Imperial College Healthcare NHS Trust,16/12/2014,Rates,Directorate Of Strategy,City Of Westminster,3054168,"116,464.00",Optional requirement only
Department of Health,Imperial College Healthcare NHS Trust,12/12/2014,Childcare Voucher (Kids Unltd),Childcare Vouchers,Computershare Voucher Services,3051879,"70,376.84",Optional requirement only
Department of Health,Imperial College Healthcare NHS Trust,29/12/2014,Gas,Directorate Of Strategy,Corona Energy,3058213,"68,979.07",Optional requirement only
Department of Health,Imperial College Healthcare NHS Trust,29/12/2014,Gas,Directorate Of Strategy,Corona Energy,3058217,"32,468.64",Optional requirement only
Department of Health,Imperial College Healthcare NHS Trust,29/12/2014,Gas,Directorate Of Strategy,Corona Energy,3058220,"53,863.22",Optional requirement only
Department of Health,Imperial College Healthcare NHS Trust,02/12/2014,Chx Pharmacy Stock,Stock,Csl Behring Uk Ltd,3034945,"39,060.00",Optional requirement only
Department of Health,Imperial College Healthcare NHS Trust,02/12/2014,Hh Pharmacy Stock,Stock,Csl Behring Uk Ltd,3034002,"66,960.00",Optional requirement only
Department of Health,Imperial College Healthcare NHS Trust,16/12/2014,Chx Pharmacy Stock,Stock,Csl Behring Uk Ltd,3046055,"33,480.00",Optional requirement only
Department of Health,Imperial College Healthcare NHS Trust,18/12/2014,Hh Pharmacy Stock,Stock,Csl Behring Uk Ltd,3044921,"131,130.00",Optional requirement only
Department of Health,Imperial College Healthcare NHS Trust,23/12/2014,Chx Pharmacy Stock,Stock,Csl Behring Uk Ltd,3047640,"33,480.00",Optional requirement only
Department of Health,Imperial College Healthcare NHS Trust,04/12/2014,Bldg/Eng Equip Maint/Rep,Directorate Of Strategy,Deanway Builders,3047870,"32,040.00",Optional requirement only
Department of Health,Imperial College Healthcare NHS Trust,23/12/2014,Consultancy Fees,Finance Directorate,Deloitte And Touche Llp,3050568,"46,176.00",Optional requirement only
Department of Health,Imperial College Healthcare NHS Trust,09/12/2014,Rent,Directorate Of Strategy,Derwent London Property Management 50022,3044491,"85,926.00",Optional requirement only
Department of Health,Imperial College Healthcare NHS Trust,04/12/2014,Ext Contract - Patient Travel & Logistics, Estates Directorate,Dhl (Former Excel),3047042,"13,912,614.81",Optional requirement only
Department of Health,Imperial College Healthcare NHS Trust,18/12/2014,Consultancy Fees,Other Hq Departments,Dhl (Former Excel),3055622,"218,790.00",Optional requirement only
Department of Health,Imperial College Healthcare NHS Trust,18/12/2014,Consultancy Fees,Other Hq Departments,Dhl (Former Excel),3055639,"218,790.00",Optional requirement only
Department of Health,Imperial College Healthcare NHS Trust,09/12/2014,Computer Software/License,Information & Comms Technology,Dr Foster Limited,3049202,"95,040.00",Optional requirement only
Department of Health,Imperial College Healthcare NHS Trust,09/12/2014,Hh Pharmacy Stock,Stock,Evolution Homecare Services Limited,3049527,"52,198.57",Optional requirement only
Department of Health,Imperial College Healthcare NHS Trust,12/12/2014,Hh Pharmacy Stock,Stock,Evolution Homecare Services Limited,3049673,"26,249.84",Optional requirement only
Department of Health,Imperial College Healthcare NHS Trust,16/12/2014,Hh Pharmacy Stock,Stock,Evolution Homecare Services Limited,3043326,"48,243.60",Optional requirement only
Department of Health,Imperial College Healthcare NHS Trust,16/12/2014,Hh Pharmacy Stock,Stock,Evolution Homecare Services Limited,3052382,"30,373.70",Optional requirement only
Department of Health,Imperial College Healthcare NHS Trust,23/12/2014,Hh Pharmacy Stock,Stock,Evolution Homecare Services Limited,3049154,"41,096.40",Optional requirement only
Department of Health,Imperial College Healthcare NHS Trust,23/12/2014,Hh Pharmacy Stock,Stock,Evolution Homecare Services Limited,3054918,"52,627.84",Optional requirement only
Department of Health,Imperial College Healthcare NHS Trust,23/12/2014,Hh Pharmacy Stock,Stock,Evolution Homecare Services Limited,3054919,"63,896.09",Optional requirement only
Department of Health,Imperial College Healthcare NHS Trust,23/12/2014,Hh Pharmacy Stock,Stock,Evolution Homecare Services Limited,3054922,"30,725.23",Optional requirement only
Department of Health,Imperial College Healthcare NHS Trust,23/12/2014,Hh Pharmacy Stock,Stock,Evolution Homecare Services Limited,3054923,"44,903.69",Optional requirement only
Department of Health,Imperial College Healthcare NHS Trust,23/12/2014,Hh Pharmacy Stock,Stock,Evolution Homecare Services Limited,3054925,"35,715.74",Optional requirement only
Department of Health,Imperial College Healthcare NHS Trust,23/12/2014,Hh Pharmacy Stock,Stock,Evolution Homecare Services Limited,3054927,"39,779.87",Optional requirement only
Department of Health,Imperial College Healthcare NHS Trust,23/12/2014,Hh Pharmacy Stock,Stock,Evolution Homecare Services Limited,3054981,"36,770.63",Optional requirement only
Department of Health,Imperial College Healthcare NHS Trust,23/12/2014,Hh Pharmacy Stock,Stock,Evolution Homecare Services Limited,3055969,"97,587.15",Optional requirement only
Department of Health,Imperial College Healthcare NHS Trust,23/12/2014,Hh Pharmacy Stock,Stock,Evolution Homecare Services Limited,3055971,"99,581.67",Optional requirement only
Department of Health,Imperial College Healthcare NHS Trust,29/12/2014,Hh Pharmacy Stock,Stock,Evolution Homecare Services Limited,3058352,"31,700.20",Optional requirement only
Department of Health,Imperial College Healthcare NHS Trust,29/12/2014,Hh Pharmacy Stock,Stock,Evolution Homecare Services Limited,3058664,"37,849.54",Optional requirement only
Department of Health,Imperial College Healthcare NHS Trust,29/12/2014,Hh Pharmacy Stock,Stock,Evolution Homecare Services Limited,3058947,"42,562.91",Optional requirement only
Department of Health,Imperial College Healthcare NHS Trust,18/12/2014,It Eqpt-Additions,Capital Summary,Experis Limted,3055714,"37,680.98",Optional requirement only
Department of Health,Imperial College Healthcare NHS Trust,09/12/2014,Buildings-Add(Prof Fee)-Purch,Capital Summary,Feilden Clegg Bardley Studios,3048673,"54,320.10",Optional requirement only
Department of Health,Imperial College Healthcare NHS Trust,09/12/2014,Buildings-Add(Prof Fee)-Purch,Capital Summary,Feilden Clegg Bardley Studios,3048677,"103,217.40",Optional requirement only
Department of Health,Imperial College Healthcare NHS Trust,12/12/2014,Buildings-Add(Prof Fee)-Purch,Capital Summary,Feilden Clegg Bardley Studios,3052070,"115,293.90",Optional requirement only
Department of Health,Imperial College Healthcare NHS Trust,18/12/2014,Chx Pharmacy Stock,Stock,Genzyme Therapeutics Ltd,3047506,"42,270.00",Optional requirement only
Department of Health,Imperial College Healthcare NHS Trust,18/12/2014,Chx Pharmacy Stock,Stock,Genzyme Therapeutics Ltd,3047507,"42,270.00",Optional requirement only
Department of Health,Imperial College Healthcare NHS Trust,29/12/2014,Chx Pharmacy Stock,Stock,Genzyme Therapeutics Ltd,3052518,"42,270.00",Optional requirement only
Department of Health,Imperial College Healthcare NHS Trust,29/12/2014,Chx Pharmacy Stock,Stock,Genzyme Therapeutics Ltd,3058363,"42,270.00",Optional requirement only
Department of Health,Imperial College Healthcare NHS Trust,29/12/2014,Hh Pharmacy Stock,Stock,Gilead Sciences Ltd,3054934,"101,751.34",Optional requirement only
Department of Health,Imperial College Healthcare NHS Trust,12/12/2014,Buildings-Additions-Purchased,Capital Summary,Gray Dungate Poole Ltd,3042948,"143,190.00",Optional requirement only
Department of Health,Imperial College Healthcare NHS Trust,12/12/2014,Minor Works,Directorate Of Strategy,Gray Dungate Poole Ltd,3042948,"40,392.00",Optional requirement only
Department of Health,Imperial College Healthcare NHS Trust,02/12/2014,Chx Pharmacy Stock,Stock,Healthcare Product Services Ltd,3037374,"542,400.00",Optional requirement only
Department of Health,Imperial College Healthcare NHS Trust,02/12/2014,Ext Contr Catering,Directorate Of Strategy,I S S Mediclean Ltd,3044718,"101,355.52",Optional requirement only
Department of Health,Imperial College Healthcare NHS Trust,29/12/2014,Ext Contr Oth Hotel Srv,Directorate Of Strategy,I S S Mediclean Ltd,3057951,"2,957,861.17",Optional requirement only
Department of Health,Imperial College Healthcare NHS Trust,16/12/2014,Jac - Stock,Stock,Idis Limited,3050989,"41,979.53",Optional requirement only
Department of Health,Imperial College Healthcare NHS Trust,04/12/2014,Decontamination Services,Directorate Of Strategy,Ihss Ltd,3037988,"317,796.94",Optional requirement only
Department of Health,Imperial College Healthcare NHS Trust,29/12/2014,Decontamination Services,Directorate Of Strategy,Ihss Ltd,3050440,"317,796.94",Optional requirement only
Department of Health,Imperial College Healthcare NHS Trust,02/12/2014,Dist Award - Local Cea,Division Of Medicine,Imperial College,3044853,"25,517.52",Optional requirement only
Department of Health,Imperial College Healthcare NHS Trust,02/12/2014,Dist Award - Nat Cea,Division Of Medicine,Imperial College,3044853,"52,908.64",Optional requirement only
Department of Health,Imperial College Healthcare NHS Trust,02/12/2014,Ic Pay Recharge In: Med,Division Of Medicine,Imperial College,3044850,"32,470.41",Optional requirement only
Department of Health,Imperial College Healthcare NHS Trust,02/12/2014,Ic Pay Recharge In: Med,Division Of Medicine,Imperial College,3044851,"104,218.73",Optional requirement only
Department of Health,Imperial College Healthcare NHS Trust,02/12/2014,Ic Pay Recharge In: Med,Division Of Medicine,Imperial College,3044853,"80,144.33",Optional requirement only
Department of Health,Imperial College Healthcare NHS Trust,29/12/2014,Dist Award - Local Cea,Division Of Medicine,Imperial College,3057615,"25,861.81",Optional requirement only
Department of Health,Imperial College Healthcare NHS Trust,29/12/2014,Dist Award - Nat Cea,Division Of Medicine,Imperial College,3057615,"54,108.34",Optional requirement only
Department of Health,Imperial College Healthcare NHS Trust,29/12/2014,Ic Pay Recharge In: Med,Division Of Medicine,Imperial College,3057615,"83,280.18",Optional requirement only
Department of Health,Imperial College Healthcare NHS Trust,29/12/2014,Ic Pay Recharge In: Med,Division Of Medicine,Imperial College,3057616,"36,015.69",Optional requirement only
Department of Health,Imperial College Healthcare NHS Trust,29/12/2014,Ic Pay Recharge In: Med,Division Of Medicine,Imperial College,3057617,"127,291.38",Optional requirement only
Department of Health,Imperial College Healthcare NHS Trust,02/12/2014,Dist Award - Local Cea,Division Of Women And Children,Imperial College,3044853,"26,784.11",Optional requirement only
Department of Health,Imperial College Healthcare NHS Trust,02/12/2014,Ic Pay Recharge In: Med,Division Of Women And Children,Imperial College,3044851,"76,209.09",Optional requirement only
Department of Health,Imperial College Healthcare NHS Trust,29/12/2014,Dist Award - Local Cea,Division Of Women And Children,Imperial College,3057615,"26,784.11",Optional requirement only
Department of Health,Imperial College Healthcare NHS Trust,29/12/2014,Ic Pay Recharge In: Med,Division Of Women And Children,Imperial College,3057617,"68,225.81",Optional requirement only
Department of Health,Imperial College Healthcare NHS Trust,02/12/2014,Dist Award - Nat Cea,Investigative Sciences & C S,Imperial College,3044853,"37,103.92",Optional requirement only
Department of Health,Imperial College Healthcare NHS Trust,02/12/2014,Ic Pay Recharge In: Med,Investigative Sciences & C S,Imperial College,3044851,"53,422.48",Optional requirement only
Department of Health,Imperial College Healthcare NHS Trust,29/12/2014,Ic Pay Recharge In: Med,Investigative Sciences & C S,Imperial College,3057617,"46,000.41",Optional requirement only
Department of Health,Imperial College Healthcare NHS Trust,23/12/2014,Other Research Exp - Pay,Rd Iscs Division,Imperial College,3056992,"25,124.36",Optional requirement only
Department of Health,Imperial College Healthcare NHS Trust,23/12/2014,Other Research Exp - Pay,Rd Iscs Division,Imperial College,3057000,"37,756.92",Optional requirement only
Department of Health,Imperial College Healthcare NHS Trust,04/12/2014,Other Research Exp - Non-Pay,Rd Medical Directorate,Imperial College,3004555,"29,942.62",Optional requirement only
Department of Health,Imperial College Healthcare NHS Trust,23/12/2014,Other Research Exp - Pay,Rd Medicine Division,Imperial College,3056885,"47,043.78",Optional requirement only
Department of Health,Imperial College Healthcare NHS Trust,23/12/2014,Other Research Exp - Pay,Rd Medicine Division,Imperial College,3056976,"43,505.82",Optional requirement only
Department of Health,Imperial College Healthcare NHS Trust,02/12/2014,Other Research Exp - Pay,Rd Surgery & Cancer Division,Imperial College,3044601,"48,393.96",Optional requirement only
Department of Health,Imperial College Healthcare NHS Trust,12/12/2014,Senior Manager Band 8a,Rdwomen And Children Division,Imperial College,3051041,"48,947.64",Optional requirement only
Department of Health,Imperial College Healthcare NHS Trust,02/12/2014,Dist Award - Local Cea,"Surg, Canc & Cardiovasc Div",Imperial College,3044853,"44,468.72",Optional requirement only
Department of Health,Imperial College Healthcare NHS Trust,02/12/2014,Dist Award - Nat Cea,"Surg, Canc & Cardiovasc Div",Imperial College,3044853,"56,948.07",Optional requirement only
Department of Health,Imperial College Healthcare NHS Trust,02/12/2014,Ic Pay Recharge In: Med,"Surg, Canc & Cardiovasc Div",Imperial College,3044851,"242,300.76",Optional requirement only
Department of Health,Imperial College Healthcare NHS Trust,02/12/2014,Ic Pay Recharge In: Med,"Surg, Canc & Cardiovasc Div",Imperial College,3044853,"87,499.50",Optional requirement only
Department of Health,Imperial College Healthcare NHS Trust,29/12/2014,Dist Award - Local Cea,"Surg, Canc & Cardiovasc Div",Imperial College,3057615,"44,630.98",Optional requirement only
Department of Health,Imperial College Healthcare NHS Trust,29/12/2014,Dist Award - Nat Cea,"Surg, Canc & Cardiovasc Div",Imperial College,3057615,"56,968.82",Optional requirement only
Department of Health,Imperial College Healthcare NHS Trust,29/12/2014,Ic Pay Recharge In: Med,"Surg, Canc & Cardiovasc Div",Imperial College,3057615,"93,311.19",Optional requirement only
Department of Health,Imperial College Healthcare NHS Trust,29/12/2014,Ic Pay Recharge In: Med,"Surg, Canc & Cardiovasc Div",Imperial College,3057616,"54,382.86",Optional requirement only
Department of Health,Imperial College Healthcare NHS Trust,29/12/2014,Ic Pay Recharge In: Med,"Surg, Canc & Cardiovasc Div",Imperial College,3057617,"247,664.65",Optional requirement only
Department of Health,Imperial College Healthcare NHS Trust,12/12/2014,Purch Hcare Independent Sector,Division Of Women And Children,Ivf Hammersmith Ltd,3050274,"114,026.00",Optional requirement only
Department of Health,Imperial College Healthcare NHS Trust,12/12/2014,Purch Hcare Independent Sector,Division Of Women And Children,Ivf Hammersmith Ltd,3050277,"35,217.00",Optional requirement only
Department of Health,Imperial College Healthcare NHS Trust,12/12/2014,Purch Hcare Independent Sector,Division Of Women And Children,Ivf Hammersmith Ltd,3050280,"39,474.00",Optional requirement only
Department of Health,Imperial College Healthcare NHS Trust,18/12/2014,Buildings-Additions-Purchased,Capital Summary,Leemoll Services Ltd,3053672,"36,480.00",Optional requirement only
Department of Health,Imperial College Healthcare NHS Trust,02/12/2014,Clinical Managed Service Contr,Investigative Sciences & C S,Leica Microsystems (Uk) Ltd,3044746,"74,446.09",Optional requirement only
Department of Health,Imperial College Healthcare NHS Trust,29/12/2014,Rent,Ravenscourt Directorate,Les Geonnais Limited,3058542,"1,290,000.00",Optional requirement only
Department of Health,Imperial College Healthcare NHS Trust,09/12/2014,Drugs Nhs,Investigative Sciences & C S,Lloyds Retail Chemists Ltd,3050409,"2,651,108.90",Optional requirement only
Department of Health,Imperial College Healthcare NHS Trust,23/12/2014,Rates,Directorate Of Strategy,London Borough Hammersmith & Fulham,3057124,"135,038.00",Optional requirement only
Department of Health,Imperial College Healthcare NHS Trust,23/12/2014,Rates,Directorate Of Strategy,London Borough Hammersmith & Fulham,3057125,"147,086.00",Optional requirement only
Department of Health,Imperial College Healthcare NHS Trust,16/12/2014,Gp Salaried Doctors,Division Of Medicine,London Central & West Unscheduled Care Collab,3054298,"44,114.41",Optional requirement only
Department of Health,Imperial College Healthcare NHS Trust,16/12/2014,Gp Sessional Doctors,Division Of Medicine,London Central & West Unscheduled Care Collab,3054298,"138,607.06",Optional requirement only
Department of Health,Imperial College Healthcare NHS Trust,16/12/2014,Pfh Admin Staff,Division Of Medicine,London Central & West Unscheduled Care Collab,3054298,"44,494.64",Optional requirement only
Department of Health,Imperial College Healthcare NHS Trust,16/12/2014,Purch Hcare Independent Sector,Division Of Medicine,London Central & West Unscheduled Care Collab,3054298,"113,505.26",Optional requirement only
Department of Health,Imperial College Healthcare NHS Trust,18/12/2014,Gp Salaried Doctors,Division Of Medicine,London Central & West Unscheduled Care Collab,3055623,"44,114.41",Optional requirement only
Department of Health,Imperial College Healthcare NHS Trust,18/12/2014,Gp Sessional Doctors,Division Of Medicine,London Central & West Unscheduled Care Collab,3055623,"138,607.06",Optional requirement only
Department of Health,Imperial College Healthcare NHS Trust,18/12/2014,Pfh Admin Staff,Division Of Medicine,London Central & West Unscheduled Care Collab,3055623,"44,494.64",Optional requirement only
Department of Health,Imperial College Healthcare NHS Trust,18/12/2014,Purch Hcare Independent Sector,Division Of Medicine,London Central & West Unscheduled Care Collab,3055623,"113,505.26",Optional requirement only
Department of Health,Imperial College Healthcare NHS Trust,23/12/2014,Gp Salaried Doctors,Division Of Medicine,London Central & West Unscheduled Care Collab,3055625,"44,114.41",Optional requirement only
Department of Health,Imperial College Healthcare NHS Trust,23/12/2014,Gp Salaried Doctors,Division Of Medicine,London Central & West Unscheduled Care Collab,3055628,"44,114.41",Optional requirement only
Department of Health,Imperial College Healthcare NHS Trust,23/12/2014,Gp Salaried Doctors,Division Of Medicine,London Central & West Unscheduled Care Collab,3055631,"44,114.41",Optional requirement only
Department of Health,Imperial College Healthcare NHS Trust,23/12/2014,Gp Sessional Doctors,Division Of Medicine,London Central & West Unscheduled Care Collab,3055625,"138,607.06",Optional requirement only
Department of Health,Imperial College Healthcare NHS Trust,23/12/2014,Gp Sessional Doctors,Division Of Medicine,London Central & West Unscheduled Care Collab,3055628,"138,607.06",Optional requirement only
Department of Health,Imperial College Healthcare NHS Trust,23/12/2014,Gp Sessional Doctors,Division Of Medicine,London Central & West Unscheduled Care Collab,3055631,"138,607.06",Optional requirement only
Department of Health,Imperial College Healthcare NHS Trust,23/12/2014,Pfh Admin Staff,Division Of Medicine,London Central & West Unscheduled Care Collab,3055625,"44,494.64",Optional requirement only
Department of Health,Imperial College Healthcare NHS Trust,23/12/2014,Pfh Admin Staff,Division Of Medicine,London Central & West Unscheduled Care Collab,3055628,"44,494.64",Optional requirement only
Department of Health,Imperial College Healthcare NHS Trust,23/12/2014,Pfh Admin Staff,Division Of Medicine,London Central & West Unscheduled Care Collab,3055631,"44,494.64",Optional requirement only
Department of Health,Imperial College Healthcare NHS Trust,23/12/2014,Purch Hcare Independent Sector,Division Of Medicine,London Central & West Unscheduled Care Collab,3055625,"113,505.26",Optional requirement only
Department of Health,Imperial College Healthcare NHS Trust,23/12/2014,Purch Hcare Independent Sector,Division Of Medicine,London Central & West Unscheduled Care Collab,3055628,"113,505.26",Optional requirement only
Department of Health,Imperial College Healthcare NHS Trust,23/12/2014,Purch Hcare Independent Sector,Division Of Medicine,London Central & West Unscheduled Care Collab,3055631,"113,505.26",Optional requirement only
Department of Health,Imperial College Healthcare NHS Trust,18/12/2014,Clinical Managed Service Contr,"Surg, Canc & Cardiovasc Div",Medtronic Ltd,3050404,"848,742.07",Optional requirement only
Department of Health,Imperial College Healthcare NHS Trust,04/12/2014,P & M-Additions-Purchased,Capital Summary,Miltenyi Biotec Ltd,3040691,"132,042.00",Optional requirement only
Department of Health,Imperial College Healthcare NHS Trust,12/12/2014,Consultancy Fees,Directorate Of Strategy,Montagu Evans Llp,3052553,"77,155.20",Optional requirement only
Department of Health,Imperial College Healthcare NHS Trust,02/12/2014,Blood Products,Investigative Sciences & C S,Nhs Blood And Transplant,3043152,"53,245.26",Optional requirement only
Department of Health,Imperial College Healthcare NHS Trust,02/12/2014,Blood Products,Investigative Sciences & C S,Nhs Blood And Transplant,3045162,"151,624.62",Optional requirement only
Department of Health,Imperial College Healthcare NHS Trust,02/12/2014,Blood Products,Investigative Sciences & C S,Nhs Blood And Transplant,3045199,"63,341.28",Optional requirement only
Department of Health,Imperial College Healthcare NHS Trust,12/12/2014,Blood Products,Investigative Sciences & C S,Nhs Blood And Transplant,3051949,"39,106.94",Optional requirement only
Department of Health,Imperial College Healthcare NHS Trust,16/12/2014,Blood Products,Investigative Sciences & C S,Nhs Blood And Transplant,3043632,"151,624.62",Optional requirement only
Department of Health,Imperial College Healthcare NHS Trust,16/12/2014,Blood Products,Investigative Sciences & C S,Nhs Blood And Transplant,3047813,"63,341.28",Optional requirement only
Department of Health,Imperial College Healthcare NHS Trust,23/12/2014,Insurance Costs,Directorate Of Strategy,Nhs Litigation Authority,3057129,"45,940.50",Optional requirement only
Department of Health,Imperial College Healthcare NHS Trust,23/12/2014,Cnst Contributions,Other Hq Departments,Nhs Litigation Authority,3057127,"1,617,295.80",Optional requirement only
Department of Health,Imperial College Healthcare NHS Trust,12/12/2014,Gross Redundancy Payments,Other Hq Departments,Nhs Pensions Agency,3051988,"78,386.76",Optional requirement only
Department of Health,Imperial College Healthcare NHS Trust,02/12/2014,Supplies Issues Recharges,Stock,Nhs Supply Chain,3044331,"83,781.27",Optional requirement only
Department of Health,Imperial College Healthcare NHS Trust,02/12/2014,Supplies Issues Recharges,Stock,Nhs Supply Chain,3044400,"77,375.21",Optional requirement only
Department of Health,Imperial College Healthcare NHS Trust,02/12/2014,Supplies Issues Recharges,Stock,Nhs Supply Chain,3044720,"116,819.42",Optional requirement only
Department of Health,Imperial College Healthcare NHS Trust,09/12/2014,Supplies Issues Recharges,Stock,Nhs Supply Chain,3050269,"133,837.04",Optional requirement only
Department of Health,Imperial College Healthcare NHS Trust,09/12/2014,Supplies Issues Recharges,Stock,Nhs Supply Chain,3050270,"86,650.76",Optional requirement only
Department of Health,Imperial College Healthcare NHS Trust,09/12/2014,Supplies Issues Recharges,Stock,Nhs Supply Chain,3050271,"94,631.96",Optional requirement only
Department of Health,Imperial College Healthcare NHS Trust,12/12/2014,Supplies Issues Recharges,Stock,Nhs Supply Chain,3052087,"85,317.89",Optional requirement only
Department of Health,Imperial College Healthcare NHS Trust,12/12/2014,Supplies Issues Recharges,Stock,Nhs Supply Chain,3052091,"130,235.83",Optional requirement only
Department of Health,Imperial College Healthcare NHS Trust,12/12/2014,Supplies Issues Recharges,Stock,Nhs Supply Chain,3052100,"83,530.82",Optional requirement only
Department of Health,Imperial College Healthcare NHS Trust,12/12/2014,Supplies Issues Recharges,Stock,Nhs Supply Chain,3052122,"87,134.76",Optional requirement only
Department of Health,Imperial College Healthcare NHS Trust,12/12/2014,Supplies Issues Recharges,Stock,Nhs Supply Chain,3052125,"83,144.71",Optional requirement only
Department of Health,Imperial College Healthcare NHS Trust,12/12/2014,Supplies Issues Recharges,Stock,Nhs Supply Chain,3052126,"111,475.15",Optional requirement only
Department of Health,Imperial College Healthcare NHS Trust,12/12/2014,Supplies Issues Recharges,Stock,Nhs Supply Chain,3052129,"96,877.58",Optional requirement only
Department of Health,Imperial College Healthcare NHS Trust,12/12/2014,Supplies Issues Recharges,Stock,Nhs Supply Chain,3052133,"91,598.60",Optional requirement only
Department of Health,Imperial College Healthcare NHS Trust,12/12/2014,Supplies Issues Recharges,Stock,Nhs Supply Chain,3052135,"83,894.41",Optional requirement only
Department of Health,Imperial College Healthcare NHS Trust,12/12/2014,Supplies Issues Recharges,Stock,Nhs Supply Chain,3052136,"100,204.92",Optional requirement only
Department of Health,Imperial College Healthcare NHS Trust,12/12/2014,Supplies Issues Recharges,Stock,Nhs Supply Chain,3052137,"90,604.32",Optional requirement only
Department of Health,Imperial College Healthcare NHS Trust,12/12/2014,Supplies Issues Recharges,Stock,Nhs Supply Chain,3052138,"109,451.60",Optional requirement only
Department of Health,Imperial College Healthcare NHS Trust,12/12/2014,Supplies Issues Recharges,Stock,Nhs Supply Chain,3052144,"140,498.76",Optional requirement only
Department of Health,Imperial College Healthcare NHS Trust,12/12/2014,Supplies Issues Recharges,Stock,Nhs Supply Chain,3052145,"102,279.63",Optional requirement only
Department of Health,Imperial College Healthcare NHS Trust,12/12/2014,Supplies Issues Recharges,Stock,Nhs Supply Chain,3052146,"87,085.13",Optional requirement only
Department of Health,Imperial College Healthcare NHS Trust,12/12/2014,Supplies Issues Recharges,Stock,Nhs Supply Chain,3052601,"90,080.01",Optional requirement only
Department of Health,Imperial College Healthcare NHS Trust,12/12/2014,Supplies Issues Recharges,Stock,Nhs Supply Chain,3052634,"109,520.18",Optional requirement only
Department of Health,Imperial College Healthcare NHS Trust,12/12/2014,Supplies Issues Recharges,Stock,Nhs Supply Chain,3052640,"113,226.29",Optional requirement only
Department of Health,Imperial College Healthcare NHS Trust,12/12/2014,Miscellaneous Expenditure,Division Of Medicine,North West London Hospitals Nhs Trust,2894963,"51,195.83",Optional requirement only
Department of Health,Imperial College Healthcare NHS Trust,12/12/2014,Miscellaneous Expenditure,Division Of Medicine,North West London Hospitals Nhs Trust,2972936,"86,390.67",Optional requirement only
Department of Health,Imperial College Healthcare NHS Trust,16/12/2014,Miscellaneous Expenditure,Division Of Medicine,North West London Hospitals Nhs Trust,2894965,"255,618.13",Optional requirement only
Department of Health,Imperial College Healthcare NHS Trust,23/12/2014,Miscellaneous Expenditure,Division Of Medicine,North West London Hospitals Nhs Trust,3056769,"86,390.67",Optional requirement only
Department of Health,Imperial College Healthcare NHS Trust,23/12/2014,Miscellaneous Expenditure,Division Of Medicine,North West London Hospitals Nhs Trust,3056770,"111,193.47",Optional requirement only
Department of Health,Imperial College Healthcare NHS Trust,23/12/2014,Miscellaneous Expenditure,Division Of Medicine,North West London Hospitals Nhs Trust,3056771,"111,193.47",Optional requirement only
Department of Health,Imperial College Healthcare NHS Trust,12/12/2014,Other Research Exp - Non-Pay,Rd Medical Directorate,North West London Hospitals Nhs Trust,3051854,"299,777.00",Optional requirement only
Department of Health,Imperial College Healthcare NHS Trust,29/12/2014,Jac - Stock,Stock,Novartis Pharmaceutical (Uk) Ltd,3055118,"32,061.60",Optional requirement only
Department of Health,Imperial College Healthcare NHS Trust,09/12/2014,Consultancy Fees,Finance Directorate,Oliver Wyman,2781683,"108,000.00",Optional requirement only
Department of Health,Imperial College Healthcare NHS Trust,12/12/2014,Service Charge,Finance Directorate,Oxford University Hospital Nhs Trust,3052156,"50,000.00",Optional requirement only
Department of Health,Imperial College Healthcare NHS Trust,29/12/2014,P & M-Additions-Purchased,Capital Summary,Philips Healthcare,3057890,"100,719.12",Optional requirement only
Department of Health,Imperial College Healthcare NHS Trust,18/12/2014,Agency Nursing: Qualified,Division Of Medicine,Reed,3053619,"31,774.55",Optional requirement only
Department of Health,Imperial College Healthcare NHS Trust,23/12/2014,Agency Nursing: Qualified,Division Of Medicine,Reed,3056534,"39,889.24",Optional requirement only
Department of Health,Imperial College Healthcare NHS Trust,02/12/2014,Agency Nursing: Qualified,Division Of Women And Children,Reed,3044259,"45,799.73",Optional requirement only
Department of Health,Imperial College Healthcare NHS Trust,02/12/2014,Agency Nursing: Qualified,Division Of Women And Children,Reed,3046241,"55,191.50",Optional requirement only
Department of Health,Imperial College Healthcare NHS Trust,09/12/2014,Agency Nursing: Qualified,Division Of Women And Children,Reed,3046483,"42,661.28",Optional requirement only
Department of Health,Imperial College Healthcare NHS Trust,16/12/2014,Agency Nursing: Qualified,Division Of Women And Children,Reed,3053617,"47,502.40",Optional requirement only
Department of Health,Imperial College Healthcare NHS Trust,18/12/2014,Agency Nursing: Qualified,Division Of Women And Children,Reed,3053619,"47,758.21",Optional requirement only
Department of Health,Imperial College Healthcare NHS Trust,23/12/2014,Agency Nursing: Qualified,Division Of Women And Children,Reed,3056534,"68,639.19",Optional requirement only
Department of Health,Imperial College Healthcare NHS Trust,02/12/2014,Agency Nursing: Qualified,Investigative Sciences & C S,Reed,3044259,"44,470.61",Optional requirement only
Department of Health,Imperial College Healthcare NHS Trust,02/12/2014,Agency Nursing: Qualified,Investigative Sciences & C S,Reed,3046025,"40,670.85",Optional requirement only
Department of Health,Imperial College Healthcare NHS Trust,02/12/2014,Agency Nursing: Qualified,Investigative Sciences & C S,Reed,3046241,"30,826.57",Optional requirement only
Department of Health,Imperial College Healthcare NHS Trust,02/12/2014,Agency Scient & Prof Qualified,Investigative Sciences & C S,Reed,3044177,"76,290.80",Optional requirement only
Department of Health,Imperial College Healthcare NHS Trust,02/12/2014,Agency Scient & Prof Qualified,Investigative Sciences & C S,Reed,3044969,"68,088.31",Optional requirement only
Department of Health,Imperial College Healthcare NHS Trust,02/12/2014,Agency Scient & Prof Qualified,Investigative Sciences & C S,Reed,3045130,"75,605.84",Optional requirement only
Department of Health,Imperial College Healthcare NHS Trust,09/12/2014,Agency Nursing: Qualified,Investigative Sciences & C S,Reed,3046483,"35,323.82",Optional requirement only
Department of Health,Imperial College Healthcare NHS Trust,16/12/2014,Agency Nursing: Qualified,Investigative Sciences & C S,Reed,3053617,"46,812.03",Optional requirement only
Department of Health,Imperial College Healthcare NHS Trust,16/12/2014,Agency Scient & Prof Qualified,Investigative Sciences & C S,Reed,3053786,"77,780.50",Optional requirement only
Department of Health,Imperial College Healthcare NHS Trust,16/12/2014,Agency Scient & Prof Qualified,Investigative Sciences & C S,Reed,3054241,"73,336.27",Optional requirement only
Department of Health,Imperial College Healthcare NHS Trust,18/12/2014,Agency Nursing: Qualified,Investigative Sciences & C S,Reed,3053619,"34,232.67",Optional requirement only
Department of Health,Imperial College Healthcare NHS Trust,23/12/2014,Agency Nursing: Qualified,Investigative Sciences & C S,Reed,3056534,"40,210.08",Optional requirement only
Department of Health,Imperial College Healthcare NHS Trust,23/12/2014,Agency Scient & Prof Qualified,Investigative Sciences & C S,Reed,3056533,"67,765.45",Optional requirement only
Department of Health,Imperial College Healthcare NHS Trust,23/12/2014,Agency Nursing: Qualified,Private Patients Directorate,Reed,3056534,"35,043.51",Optional requirement only
Department of Health,Imperial College Healthcare NHS Trust,02/12/2014,Agency Nursing: Qualified,"Surg, Canc & Cardiovasc Div",Reed,3044259,"70,843.22",Optional requirement only
Department of Health,Imperial College Healthcare NHS Trust,02/12/2014,Agency Nursing: Qualified,"Surg, Canc & Cardiovasc Div",Reed,3046025,"87,607.56",Optional requirement only
Department of Health,Imperial College Healthcare NHS Trust,02/12/2014,Agency Nursing: Qualified,"Surg, Canc & Cardiovasc Div",Reed,3046241,"69,180.30",Optional requirement only
Department of Health,Imperial College Healthcare NHS Trust,09/12/2014,Agency Nursing: Qualified,"Surg, Canc & Cardiovasc Div",Reed,3046483,"57,962.19",Optional requirement only
Department of Health,Imperial College Healthcare NHS Trust,16/12/2014,Agency Nursing: Qualified,"Surg, Canc & Cardiovasc Div",Reed,3053617,"100,071.27",Optional requirement only
Department of Health,Imperial College Healthcare NHS Trust,18/12/2014,Agency Nursing: Qualified,"Surg, Canc & Cardiovasc Div",Reed,3053619,"58,493.08",Optional requirement only
Department of Health,Imperial College Healthcare NHS Trust,23/12/2014,Agency Nursing: Qualified,"Surg, Canc & Cardiovasc Div",Reed,3056534,"64,244.96",Optional requirement only
Department of Health,Imperial College Healthcare NHS Trust,09/12/2014,Chx Pharmacy Stock,Stock,Roche Products Ltd,3049464,"51,332.40",Optional requirement only
Department of Health,Imperial College Healthcare NHS Trust,16/12/2014,Hh Pharmacy Stock,Stock,Roche Products Ltd,3052439,"88,013.52",Optional requirement only
Department of Health,Imperial College Healthcare NHS Trust,23/12/2014,Hh Pharmacy Stock,Stock,Roche Products Ltd,3044883,"176,027.04",Optional requirement only
Department of Health,Imperial College Healthcare NHS Trust,23/12/2014,Hh Pharmacy Stock,Stock,Roche Products Ltd,3055023,"53,983.25",Optional requirement only
Department of Health,Imperial College Healthcare NHS Trust,29/12/2014,Chx Pharmacy Stock,Stock,Roche Products Ltd,3049598,"60,784.63",Optional requirement only
Department of Health,Imperial College Healthcare NHS Trust,02/12/2014,Isotopes,Investigative Sciences & C S,Siemens Healthcare Plc,3045292,"32,930.35",Optional requirement only
Department of Health,Imperial College Healthcare NHS Trust,12/12/2014,P & M-Additions-Purchased,Capital Summary,Storz-Karlstroz Endoscopy (Uk) Ltd,3045751,"44,131.87",Optional requirement only
Department of Health,Imperial College Healthcare NHS Trust,02/12/2014,Thames Valley Housing Assoc,Housing deductions,Thames Valley Charitable Housing,3045455,"100,981.06",Optional requirement only
Department of Health,Imperial College Healthcare NHS Trust,29/12/2014,Water,Directorate Of Strategy,Thames Water Utilities Limited,3057773,"27,077.31",Optional requirement only
Department of Health,Imperial College Healthcare NHS Trust,09/12/2014,Audit Fees: Internal,Finance Directorate,Tiaa Ltd,3049281,"69,675.00",Optional requirement only
Department of Health,Imperial College Healthcare NHS Trust,04/12/2014,Postage & Carriage,Directorate Of Strategy,Tnt Post London Ltd,3040743,"40,069.03",Optional requirement only
Department of Health,Imperial College Healthcare NHS Trust,09/12/2014,P & M-Additions-Purchased,Capital Summary,Toshiba Medical Systems Ltd,3049195,"120,996.00",Optional requirement only
Department of Health,Imperial College Healthcare NHS Trust,04/12/2014,It Eqpt-Additions,Capital Summary,Ultima Business Solutions Ltd,3048061,"76,087.74",Optional requirement only
Department of Health,Imperial College Healthcare NHS Trust,09/12/2014,Services Received - Nhsts,Division Of Medicine,University Hospital Birmingham Nhs Foundation,2994527,"59,384.25",Optional requirement only
Department of Health,Imperial College Healthcare NHS Trust,12/12/2014,It Eqpt-Additions,Capital Summary,Waverley,3052250,"113,100.00",Optional requirement only
Department of Health,Imperial College Healthcare NHS Trust,12/12/2014,It Eqpt-Additions,Capital Summary,Waverley,3052251,"30,768.00",Optional requirement only
Department of Health,Imperial College Healthcare NHS Trust,12/12/2014,It Eqpt-Additions,Capital Summary,Waverley,3052252,"42,588.00",Optional requirement only
,,,,,,Sum:,"41,779,101.28",
